[Event "31st Kavala Open-A 2022"]
[Site "Kavala"]
[Date "2022.07.27"]
[Round "2.6"]
[White "Markidis, Konstantinos"]
[Black "Vrolijk, Liam"]
[Result "1/2-1/2"]
[ECO "C88"]
[WhiteElo "2259"]
[BlackElo "2464"]
[Annotator "TA"]
[PlyCount "72"]
[EventDate "2022.07.27"]
[EventType "swiss"]
[EventCountry "GRE"]
[SourceTitle "playchess.com"]
[Source "ChessBase"]
[SourceQuality "1"]
[TimeControl "40/5400+30:1800+30"]

{[%evp 20,72,5,22,53,52,86,88,92,81,170,170,158,149,164,157,164,167,160,137,248,250,237,69,100,70,67,58,52,63,52,0,0,0,0,0,0,0,0,0,0,0,0,0,0,0,0,0,0,0,0,12,0,0,0]} 1. e4 {[%emt 0:00:11]} e5 {[%emt 0:00:33]} 2. Nf3 {[%emt 0:00:17]} Nc6 {[%emt 0:00:14]} 3. Bb5 {[%emt 0:00:09]} a6 {[%emt 0:00:26]} 4. Ba4 {[%emt 0:00:07]} Nf6 {[%emt 0:00:48]} 5. O-O {[%emt 0:00:15]} Be7 {[%emt 0:00:22]} 6. Re1 {[%emt 0:00:36]} b5 {[%emt 0:00:12]} 7. Bb3 {[%emt 0:00:05]} O-O {[%emt 0:00:08]} 8. a4 {[%emt 0:01:34]} Bb7 {[%emt 0:00:37]} 9. d3 {[%emt 0:00:37]} d6 {[%emt 0:00:43]} 10. Nc3 {[%emt 0:12:51]} b4 {[%emt 0:04:34]} 11. Nd5 {[%emt 0:01:53]} Bc8 {[%emt 0:16:58] [#] C88: Closed Ruy Lopez: Anti-Marshall Systems.} 12. a5 $146 {[%emt 0:06:18]} ({Predecessor:} 12. c3 bxc3 13. bxc3 Rb8 14. Re2 Bg4 15. Nxf6+ Bxf6 16. Rb2 Na5 17. Bc2 Rxb2 18. Bxb2 Qe8 19. h3 {1-0 (40) Fischer-Weiss DDR 1989}) 12... Be6 {[%emt 0:10:40]} 13. Bd2 {[%emt 0:02:36]} Rb8 {[%emt 0:01:17] White is better.} 14. Bc4 {[%emt 0:00:44]} (14. Nxe7+ $6 Qxe7 15. Bxe6 fxe6 $11) 14... Bxd5 {[%emt 0:06:59]} (14... Re8 $16 {is a better defense.}) 15. exd5 $18 {[%emt 0:00:44]} Na7 {[%emt 0:00:06]} 16. Bxa6 {[%emt 0:06:55]} Nxd5 {[%emt 0:00:44]} 17. d4 $1 {[%emt 0:02:49]} exd4 {[%emt 0:01:59]} 18. Bc4 {[%emt 0:00:40] This bishop pair is nice.} (18. Nxd4 Bf6 19. Qg4 Ne7 $16) 18... Nf6 {[%emt 0:02:47]} 19. Nxd4 {[%emt 0:00:25] Black must now prevent Nf5.} g6 {[%emt 0:03:16] Prevents Nf5.} (19... d5 $16 {was necessary.}) 20. Qe2 {[%emt 0:16:56]} ({Much less strong is} 20. Bh6 $6 Re8 21. Bb3 Bf8) 20... Re8 {[%emt 0:00:50] [#]} 21. Nb5 $2 {[%emt 0:01:37]} ({White should try} 21. Bxf7+ $1 $18 {[%mdl 512]} Kxf7 22. Qe6+ Kg7 {[#]} 23. Bh6+ $1 {[%mdl 512]} Kh8 24. Qf7) 21... Bf8 {[%emt 0:10:10]} 22. Qd3 {[%emt 0:01:59] White is much more active.} Rxe1+ {[%emt 0:01:21]} 23. Bxe1 {[%emt 0:01:26]} Nxb5 {[%emt 0:04:06]} 24. Bxb5 {[%emt 0:00:06] a6 is the strong threat.} d5 {[%emt 0:00:12]} 25. c3 {[%emt 0:08:42]} (25. a6 $14 Bc5 26. Qe2 (26. a7 Ra8 $11)) 25... bxc3 $1 $11 {[%emt 0:03:57] The position is equal.} ({But not} 25... Qd6 26. cxb4 Ng4 27. g3 $16) 26. bxc3 {[%emt 0:00:19][%cal Bb2c3,Bc3c4,Bc4d5][%mdl 32]} Bc5 {[%emt 0:03:31]} 27. c4 {[%emt 0:01:20]} Qd6 {[%emt 0:05:13]} 28. h3 {[%emt 0:04:38]} Ne4 {[%emt 0:02:39]} 29. Rd1 {[%emt 0:01:14]} c6 {[%emt 0:02:32]} 30. cxd5 {[%emt 0:03:13]} Nxf2 {[%emt 0:02:00]} (30... Rxb5 $2 31. Qxe4 Rb8 32. a6 $18) 31. Bxf2 {[%emt 0:00:13]} Bxf2+ {[%emt 0:01:59]} 32. Kxf2 {[%emt 0:00:07]} Rxb5 {[%emt 0:01:10]} 33. dxc6 {[%emt 0:01:15]} Qxc6 {[%emt 0:00:48] KQR-KQR} 34. Qd8+ {[%emt 0:05:15]} Kg7 {[%emt 0:00:30]} 35. Qd4+ {[%emt 0:00:08]} Kg8 {[%emt 0:01:44]} 36. Qd8+ {[%emt 0:00:09]} Kg7 {[%emt 0:00:06] Black defended with fortune.  Weighted Error Value: White=0.15 (very precise) /Black=0.11 (very precise)} 1/2-1/2

[Event "31st Kavala Open-A 2022"]
[Site "Kavala"]
[Date "2022.07.27"]
[Round "2.7"]
[White "Ortega Lopez, Mikel"]
[Black "Can, Isik"]
[Result "1/2-1/2"]
[ECO "C60"]
[WhiteElo "2249"]
[BlackElo "2445"]
[Annotator "TA"]
[PlyCount "36"]
[EventDate "2022.07.27"]
[EventType "swiss"]
[EventCountry "GRE"]
[SourceTitle "playchess.com"]
[Source "ChessBase"]
[SourceQuality "1"]
[TimeControl "40/5400+30:1800+30"]

{[%evp 9,36,25,35,17,16,-23,11,0,4,-22,37,32,29,20,31,27,20,21,30,25,37,42,37,47,43,11,85,47,62]} 1. e4 {[%emt 0:00:27]} e5 {[%emt 0:00:16]} 2. Nf3 {[%emt 0:00:27]} Nc6 {[%emt 0:00:06]} 3. Bb5 {[%emt 0:01:46]} a6 {[%emt 0:00:05]} 4. Ba4 {[%emt 0:00:09]} Nge7 {[%emt 0:00:04]} 5. O-O {[%emt 0:05:45]} g6 {[%emt 0:00:23]} 6. d4 {[%emt 0:00:57] C60: Ruy Lopez: Unusual Black 3rd moves and 3...g6.} exd4 {[%emt 0:03:39]} 7. Bxc6 {[%emt 0:07:41]} Nxc6 {[%emt 0:16:30]} 8. Bg5 {[%emt 0:01:57] The position is equal.} f6 {[%emt 0:02:20]} 9. Bh4 {[%emt 0:00:57]} Bg7 {[%emt 0:27:28]} ({Black should play} 9... h5 $1 $11 10. Bg3 Bc5) 10. Nxd4 $14 {[%emt 0:01:57]} O-O {[%emt 0:00:05]} 11. Nc3 {[%emt 0:02:10]} d6 {[%emt 0:06:41] [#]} 12. f4 $146 {[%emt 0:04:46][%cal Bf2f4,Bf4f5][%mdl 32]} ({Predecessor:} 12. Nce2 Qe8 13. f3 Bd7 14. Bf2 Ne5 15. c3 Qf7 16. b3 Rad8 17. Qd2 b5 18. Rad1 {½-½ (38) Ascic,P (2275)-Trbojevic,M (2417) Bosnjaci 2015}) 12... Qe8 {[%emt 0:01:22]} 13. f5 {[%emt 0:03:57]} Bd7 {[%emt 0:05:15]} 14. Qd2 {[%emt 0:06:02]} Rc8 {[%emt 0:17:08]} 15. Rae1 {[%emt 0:04:59]} Nxd4 {[%emt 0:09:12]} 16. Qxd4 {[%emt 0:00:08]} Qe5 {[%emt 0:02:53]} 17. Qd3 {[%emt 0:07:35]} Kh8 {[%emt 0:02:34]} (17... gxf5 $11 18. Nd5 Kh8) 18. b3 {[%emt 0:15:01]} gxf5 {[%emt 0:01:48] Weighted Error Value: White=0.13 (very precise) /Black=0.19 (very precise)} 1/2-1/2

[Event "31st Kavala Open-A 2022"]
[Site "Kavala"]
[Date "2022.07.27"]
[Round "2.8"]
[White "Kilic, Eray"]
[Black "Sandalakis, Nikolaos"]
[Result "1-0"]
[ECO "C88"]
[WhiteElo "2422"]
[BlackElo "2213"]
[Annotator "TA"]
[PlyCount "85"]
[EventDate "2022.07.27"]
[EventType "swiss"]
[EventCountry "GRE"]
[SourceTitle "playchess.com"]
[Source "ChessBase"]
[SourceQuality "1"]
[TimeControl "40/5400+30:1800+30"]

{[%evp 21,85,9,23,0,0,0,0,-19,0,0,0,0,45,43,42,15,16,-12,-2,-2,-11,-10,0,-4,0,0,20,8,13,2,54,56,60,64,67,49,111,114,111,45,147,147,147,145,151,148,143,140,148,148,238,238,238,191,205,86,238,238,358,358,343,343,329,311,344,301]} 1. e4 {[%emt 0:00:02]} e5 {[%emt 0:00:13]} 2. Nf3 {[%emt 0:00:05]} Nc6 {[%emt 0:00:04]} 3. Bb5 {[%emt 0:00:04]} a6 {[%emt 0:00:06]} 4. Ba4 {[%emt 0:00:04]} Nf6 {[%emt 0:00:06]} 5. O-O {[%emt 0:00:14]} Be7 {[%emt 0:00:40]} 6. Re1 {[%emt 0:00:06]} b5 {[%emt 0:00:09]} 7. Bb3 {[%emt 0:00:04]} O-O {[%emt 0:00:11]} 8. a4 {[%emt 0:00:10]} b4 {[%emt 0:00:18]} 9. a5 {[%emt 0:00:25]} d6 {[%emt 0:00:45]} 10. d3 {[%emt 0:00:26]} Be6 {[%emt 0:02:14]} 11. Nbd2 {[%emt 0:00:36]} Rb8 {[%emt 0:03:15] Recently 11...Bxb3 got a lot of attention.} 12. Nc4 {[%emt 0:03:02] C88: Closed Ruy Lopez: Anti-Marshall Systems.} Nd7 {[%emt 0:10:02]} 13. Be3 {[%emt 0:04:59]} Bf6 {[%emt 0:19:33]} 14. Ncd2 {[%emt 0:21:42] [#] The position is equal.} Nd4 $146 {[%emt 0:04:28]} ({Predecessor:} 14... Bxb3 15. Nxb3 Qe7 16. c3 bxc3 17. bxc3 Rb5 {½-½ (17) Boukal,P (2435)-Straka,Z (2395) ICCF email 2004}) 15. Bxd4 {[%emt 0:02:32]} exd4 {[%emt 0:00:55]} 16. Bc4 {[%emt 0:01:18]} c5 {[%emt 0:15:59]} 17. Bxa6 {[%emt 0:12:10]} Ra8 {[%emt 0:00:16]} 18. Bb5 {[%emt 0:00:50]} Rxa5 {[%emt 0:00:15]} 19. Bxd7 {[%emt 0:00:07]} Rxa1 {[%emt 0:02:41]} 20. Qxa1 {[%emt 0:00:32] Bxe6 is the strong threat.} Qxd7 {[%emt 0:00:01]} 21. Qa6 {[%emt 0:00:33] Inhibits Qb7.} h6 {[%emt 0:08:44]} 22. Ra1 {[%emt 0:10:10]} g5 {[%emt 0:09:48]} 23. Nc4 {[%emt 0:03:23]} g4 {[%emt 0:00:18] Hoping for ...Bxc4.} 24. Nfd2 {[%emt 0:02:09]} Bg5 {[%emt 0:00:51]} 25. Nb3 {[%emt 0:06:20]} Bf4 {[%emt 0:02:20]} (25... Rd8 $11) 26. g3 $14 {[%emt 0:03:39]} Bxc4 {[%emt 0:00:04]} 27. Qxc4 {[%emt 0:00:02]} Be5 {[%emt 0:00:25]} 28. Nd2 {[%emt 0:02:03]} Qe6 {[%emt 0:03:50]} (28... Qb7 $14) 29. Qxe6 $16 {[%emt 0:05:59]} fxe6 {[%emt 0:00:03][%mdl 4096] Endgame KRB-KRN} 30. Nc4 {[%emt 0:00:06]} ({White should try} 30. Ra6 $16) 30... Kf7 {[%emt 0:02:38]} (30... b3 $1 $14) 31. b3 {[%emt 0:02:33]} Kf6 {[%emt 0:01:20]} 32. Ra6 {[%emt 0:00:08]} Rd8 {[%emt 0:00:49]} 33. Kg2 {[%emt 0:00:11]} h5 {[%emt 0:00:35]} 34. h3 {[%emt 0:00:39]} Rd7 {[%emt 0:00:37]} 35. Ra8 {[%emt 0:01:44]} Rh7 {[%emt 0:04:44]} (35... Kg7 $16 36. Nxe5 dxe5) 36. hxg4 $18 {[%emt 0:03:27]} hxg4 {[%emt 0:00:04]} 37. Rf8+ {[%emt 0:00:10]} Ke7 {[%emt 0:03:11] [#]} 38. Rc8 {[%emt 0:02:16]} (38. Rb8 $1 $18 {[%cal Rb8b7] and the rest is easy.} Rh5 39. Rg8) 38... Kf6 $2 {[%emt 0:04:47] [#] A mistake that costs the game.} (38... Rh8 $16 39. Rc6 Rh5) 39. Rg8 $1 {[%emt 0:02:49]} d5 {[%emt 0:02:02]} (39... Rd7 {might work better.} 40. Rxg4 Kf7 41. Nxe5+ dxe5) 40. exd5 {[%emt 0:00:00]} exd5 {[%emt 0:00:00]} 41. Nxe5 {[%emt 0:02:31] White has a decisive advantage.} Kxe5 {[%emt 0:01:22]} 42. Rxg4 {[%emt 0:00:52]} Ra7 {[%emt 0:00:14]} 43. Rg5+ {[%emt 0:00:14] Weighted Error Value: White=0.12 (very precise) /Black=0.31} 1-0

[Event "31st Kavala Open-A 2022"]
[Site "Kavala"]
[Date "2022.07.27"]
[Round "2.9"]
[White "Kanakaris, Georgios"]
[Black "Maksimovic, Branimir"]
[Result "1-0"]
[ECO "A49"]
[WhiteElo "2389"]
[BlackElo "2203"]
[Annotator "TA"]
[PlyCount "121"]
[EventDate "2022.07.27"]
[EventType "swiss"]
[EventCountry "GRE"]
[SourceTitle "playchess.com"]
[Source "ChessBase"]
[SourceQuality "1"]
[TimeControl "40/5400+30:1800+30"]

{[%evp 10,121,20,4,14,18,14,18,29,-29,-25,-16,-29,-8,-12,-16,-14,-23,51,63,57,66,69,49,83,34,40,36,95,101,73,68,50,58,63,43,38,24,32,30,33,2,3,3,12,0,8,6,29,29,29,29,30,30,38,22,30,10,22,23,29,19,30,16,16,16,85,85,204,14,305,302,297,264,258,185,427,412,363,346,606,606,554,530,622,601,544,493,633,607,593,545,2044,2314,3078,2780,1915,1837,1173,656,11231,10223,12828,11622,12829,12829,12831,12831,4945,2847,12836,12835,12844,12844]} 1. Nf3 {[%emt 0:00:06]} Nf6 {[%emt 0:00:17]} 2. d4 {[%emt 0:00:08]} g6 {[%emt 0:00:04]} 3. g3 {[%emt 0:03:59]} Bg7 {[%emt 0:00:05]} 4. Bg2 {[%emt 0:00:03]} c5 {[%emt 0:00:10]} 5. O-O {[%emt 0:00:17]} cxd4 {[%emt 0:00:03]} 6. Nxd4 {[%emt 0:00:04]} h5 {[%emt 0:00:07] A49: 1 d4 Nf6 2 Nf3 g6 3 g3: Anti-King's Indian systems.} 7. h4 {[%emt 0:01:37]} Nc6 {[%emt 0:00:21]} 8. c4 {[%emt 0:02:17]} Ng4 {[%emt 0:12:29] The position is equal.} 9. Nf3 {[%emt 0:06:46] [#]} (9. e3 $142) 9... d6 $146 {[%emt 0:00:11]} ({Predecessor:} 9... b6 10. Na3 Bb7 11. Rb1 O-O 12. b3 d5 13. Bb2 dxc4 14. Nxc4 b5 15. Bxg7 Kxg7 {0-1 (35) Lodhi,M (2391)-Bologan,V (2690) Khanty-Mansiysk 2010}) 10. Nc3 {[%emt 0:05:51]} Bxc3 {[%emt 0:00:22]} 11. bxc3 {[%emt 0:00:05]} Bd7 {[%emt 0:01:54]} 12. c5 {[%emt 0:12:33]} dxc5 {[%emt 0:00:29]} 13. Qd5 {[%emt 0:00:09]} Be6 {[%emt 0:03:51]} (13... Rc8 $11) 14. Qxc5 $14 {[%emt 0:00:17]} Qa5 {[%emt 0:00:09]} 15. Qxa5 {[%emt 0:09:26]} Nxa5 {[%emt 0:00:03]} 16. Nd4 {[%emt 0:00:04]} Bc4 {[%emt 0:04:38]} 17. Ba3 {[%emt 0:01:07]} (17. Rb1 $16) 17... Rc8 $1 {[%emt 0:11:34]} 18. Bb4 {[%emt 0:08:44] A strong pair of Bishops.} Nc6 {[%emt 0:00:06]} (18... b6 $1 $14) 19. Nxc6 $16 {[%emt 0:00:05]} bxc6 {[%emt 0:00:02]} 20. Bc5 {[%emt 0:18:00]} Rc7 {[%emt 0:02:19]} 21. Rfb1 {[%emt 0:00:05]} O-O {[%emt 0:00:17]} 22. Rb2 {[%emt 0:00:54]} Rd8 {[%emt 0:01:32]} 23. f3 {[%emt 0:04:16]} Nh6 {[%emt 0:02:44]} 24. Bh3 {[%emt 0:06:03]} Rd5 {[%emt 0:04:26]} 25. Bf2 {[%emt 0:00:24]} Rb5 {[%emt 0:03:10]} 26. Rxb5 {[%emt 0:05:33]} cxb5 {[%emt 0:00:22]} 27. e4 {[%emt 0:06:13]} f6 {[%emt 0:02:29]} 28. a4 {[%emt 0:01:21]} a6 {[%emt 0:00:05]} 29. axb5 {[%emt 0:01:35]} axb5 {[%emt 0:00:05]} 30. Ra7 {[%emt 0:02:20]} Rxa7 {[%emt 0:00:07]} 31. Bxa7 $11 {[%emt 0:00:05][%mdl 4096] Endgame KBB-KBN} Nf7 {[%emt 0:00:26]} 32. Bc5 {[%emt 0:00:35]} Kf8 {[%emt 0:01:42]} 33. Kf2 {[%emt 0:01:17]} Ke8 {[%emt 0:01:02]} 34. Ke3 {[%emt 0:01:28]} e6 {[%emt 0:01:26]} 35. f4 {[%emt 0:00:55]} f5 {[%emt 0:03:47]} 36. exf5 {[%emt 0:01:37]} exf5 {[%emt 0:00:11]} 37. Kd4 {[%emt 0:00:17] [#] Bg2 is the strong threat.} Kd7 {[%emt 0:02:09]} (37... Nh6 $1 $11 {remains equal.}) 38. Bg2 $16 {[%emt 0:00:07] Strongly threatening Bd5.} Ke6 {[%emt 0:03:06] Prevents Bd5+.} (38... Nd6 $16) 39. Bf8 $2 {[%emt 0:01:22]} (39. Bc6 $18) 39... Nd8 $2 {[%emt 0:00:14][%mdl 8192] This costs Black the game.} (39... Nd6 $11 {and Black has nothing to worry.}) 40. Kc5 $18 {[%emt 0:00:00]} Kd7 {[%emt 0:00:00] [#] Hoping for ...Ne6+.} 41. Kb6 {[%emt 0:02:15]} Bd3 {[%emt 0:02:23]} 42. Bg7 {[%emt 0:02:46]} Nf7 $2 {[%emt 0:00:40]} (42... Ke7 43. Bd4 Kd7) 43. Bc6+ {[%emt 0:02:48]} Ke7 {[%emt 0:00:33]} 44. Kc7 {[%emt 0:01:58]} ({Less strong is} 44. Bxb5 Bxb5 45. Kxb5 Kd7 $18) 44... Bc4 $2 {[%emt 0:01:16]} (44... Ke6 45. Bf8 Bf1) 45. Bd7 {[%emt 0:03:37] White is clearly winning.} Bd3 {[%emt 0:00:05]} 46. Bd4 {[%emt 0:00:23]} Be2 {[%emt 0:02:35]} 47. Bc5+ {[%emt 0:01:51]} Kf6 {[%emt 0:00:03]} 48. Bf8 {[%emt 0:00:31] Inhibits Nh6.} Bd3 {[%emt 0:00:08]} 49. Kb6 {[%emt 0:11:07]} Nd8 {[%emt 0:00:22]} 50. Bxb5 {[%emt 0:00:06]} Bxb5 {[%emt 0:00:13]} 51. Kxb5 {[%emt 0:00:06] KB-KN} Ke6 {[%emt 0:00:06]} 52. c4 {[%emt 0:00:32] Black must now prevent Kc5.} Kd7 {[%emt 0:00:04]} 53. Bg7 {[%emt 0:01:41]} Nc6 {[%emt 0:00:43]} 54. Kc5 {[%emt 0:01:46]} Nd8 {[%emt 0:10:18] Threatens to win with ...Ne6+.} 55. Kd5 {[%emt 0:00:53]} Ne6 {[%emt 0:00:48]} 56. Bc3 {[%emt 0:01:26]} Nd8 {[%emt 0:01:59]} 57. Ke5 {[%emt 0:01:53]} Nf7+ {[%emt 0:00:24]} 58. Kf6 {[%emt 0:00:06]} Nd6 {[%emt 0:00:03]} 59. Kxg6 {[%emt 0:00:10]} Ke6 {[%emt 0:00:32]} 60. Kxh5 {[%emt 0:00:41]} Nxc4 {[%emt 0:00:08]} 61. Kg6 {[%emt 0:00:32] Weighted Error Value: White=0.14 (very precise) /Black=0.46} 1-0

[Event "31st Kavala Open-A 2022"]
[Site "Kavala"]
[Date "2022.07.27"]
[Round "2.10"]
[White "Michalicka, Milan"]
[Black "Maltsevskaya, Aleksandra"]
[Result "1/2-1/2"]
[ECO "E99"]
[WhiteElo "2216"]
[BlackElo "2378"]
[Annotator "TA"]
[PlyCount "76"]
[EventDate "2022.07.27"]
[EventType "swiss"]
[EventCountry "GRE"]
[SourceTitle "playchess.com"]
[Source "ChessBase"]
[SourceQuality "1"]
[TimeControl "40/5400+30:1800+30"]

{[%evp 36,76,42,34,100,92,119,97,119,118,107,57,48,72,63,0,54,0,0,0,12,15,18,12,146,183,186,193,177,173,173,175,193,187,144,210,205,0,0,0,177,0,0]} 1. d4 {[%emt 0:00:02]} Nf6 {[%emt 0:04:05]} 2. c4 {[%emt 0:00:09]} g6 {[%emt 0:00:08]} 3. Nc3 {[%emt 0:00:11]} Bg7 {[%emt 0:00:08]} 4. e4 {[%emt 0:00:16]} d6 {[%emt 0:00:10]} 5. Nf3 {[%emt 0:00:19]} O-O {[%emt 0:00:12]} 6. Be2 {[%emt 0:00:25]} e5 {[%emt 0:00:10]} 7. O-O {[%emt 0:00:24]} Nc6 {[%emt 0:00:10]} 8. d5 {[%emt 0:00:18]} Ne7 {[%emt 0:00:08]} 9. Ne1 {[%emt 0:00:28]} Ne8 {[%emt 0:00:27]} 10. Nd3 {[%emt 0:00:40]} f5 {[%emt 0:00:10]} 11. Bd2 {[%emt 0:00:43]} Nf6 {[%emt 0:02:59]} 12. f3 {[%emt 0:00:30]} f4 {[%emt 0:00:06]} 13. c5 {[%emt 0:01:29]} g5 {[%emt 0:00:08]} 14. Rc1 {[%emt 0:00:59]} Ng6 {[%emt 0:00:13]} 15. cxd6 {[%emt 0:01:39]} cxd6 {[%emt 0:00:06]} 16. Nb5 {[%emt 0:00:45]} Rf7 {[%emt 0:03:10]} 17. Qc2 {[%emt 0:00:33]} Ne8 {[%emt 0:04:56]} 18. a4 {[%emt 0:00:38]} h5 {[%emt 0:00:37]} 19. Nf2 {[%emt 0:00:34]} g4 {[%emt 0:04:13] E99: King's Indian: Classical Main Line: 9 Ne1 Nd7 10 f3 f5.} (19... Bf8 $14) 20. fxg4 $16 {[%emt 0:02:32] [#]} hxg4 $146 {[%emt 0:00:22]} ({Predecessor:} 20... Nh4 21. Qd1 hxg4 22. Bxg4 Qg5 23. Rxc8 Rxc8 24. g3 Rc4 25. gxh4 Qxh4 26. Be6 {1-0 (26) Elmali,N (1882)-Van Orsouw,N (1806) Kranenburg 2005}) 21. Nxg4 {[%emt 0:01:23]} a6 {[%emt 0:00:33] White is better.} 22. Na3 {[%emt 0:10:08] 0x0.001686a106dadp-1022s more active pieces.} Qg5 {[%emt 0:00:22]} 23. h3 {[%emt 0:02:07]} (23. Qd1 $16) 23... Nf6 $1 $14 {[%emt 0:00:33]} 24. Nxf6+ {[%emt 0:04:36]} Bxf6 {[%emt 0:00:08]} 25. g4 {[%emt 0:06:18]} ({White should play} 25. Qb3 $14) 25... Qh4 {[%emt 0:11:21]} (25... Bd8 $11) 26. Qd3 {[%emt 0:02:13]} (26. Qb3 $14) 26... Bg5 $11 {[%emt 0:03:36][%cal Of4f3] [#] ...f3! is the strong threat.} 27. Qf3 {[%emt 0:13:47]} Qh6 $1 {[%emt 0:01:53] White must now prevent ...Nh4.} 28. Nc4 $36 {[%emt 0:06:47][%cal Ba3c4,Bc4d6,Bd6c8][%mdl 2080] White has the initiative.} Nh4 {[%emt 0:00:39]} 29. Qf2 {[%emt 0:00:19] Threatens to win with Nb6.} f3 {[%emt 0:00:54]} (29... Bd7 $11) 30. Bxg5 $16 {[%emt 0:07:16]} Qxg5 {[%emt 0:00:07]} 31. Nxd6 {[%emt 0:00:16] Dancing on a razor blade.} Rf4 {[%emt 0:02:20]} 32. Nxc8 {[%emt 0:02:30]} ({Don't do} 32. Rxc8+ Rxc8 33. Nxc8 fxe2 34. Qxe2 Rxf1+ 35. Qxf1 Qe3+ 36. Kh2 (36. Qf2 Qc1+ 37. Kh2 Qxc8 $14) 36... Nf3+ 37. Kh1 Qxe4 $16) 32... fxe2 {[%emt 0:00:19]} 33. Qxe2 {[%emt 0:00:48]} Rxf1+ {[%emt 0:05:54]} 34. Qxf1 {[%emt 0:01:12]} Qe3+ {[%emt 0:00:27]} 35. Kh2 {[%emt 0:01:09]} Nf3+ {[%emt 0:00:35]} 36. Kg2 {[%emt 0:05:46] Strongly threatening Ne7+.} Nh4+ $1 {[%emt 0:01:42]} 37. Kh2 {[%emt 0:00:15]} Nf3+ {[%emt 0:01:48]} 38. Kg2 $2 {[%emt 0:00:14]} ({Only move:} 38. Kh1 $18 Qd2 39. Ne7+ Kg7 {[#]} 40. Rc2 $3 {[%mdl 512]} (40. Qxf3 Qxc1+ 41. Kh2 b5 $16) (40. Nf5+ Kf8 $16) 40... Qxc2 41. Qxf3) 38... Nh4+ $1 {[%emt 0:01:06] Weighted Error Value: White=0.46/Black=0.23 (precise)} 1/2-1/2